[Event "Early-Titled-Tuesday-Blitz-October-24-2023"]
[Site "Chess.com"]
[Date "2023.10.24"]
[Round "6"]
[White "Felix-Rose"]
[Black "JG-17"]
[Result "0-1"]
[WhiteElo "2301"]
[BlackElo "2478"]
[TimeControl "180+1"]
[EndTime "9:03:24 PDT"]
[Termination "JG-17 won on time"]

1. e4 {[%clk 0:03:00.3]} 1... c6 {[%clk 0:02:59.2]} 2. d4 {[%clk 0:02:59.8]}
2... d6 {[%clk 0:02:59.6]} 3. Nc3 {[%clk 0:02:56.5]} 3... g6 {[%clk 0:03:00.1]}
4. f4 {[%clk 0:02:56.3]} 4... Bg7 {[%clk 0:03:00.5]} 5. Nf3 {[%clk 0:02:56.8]}
5... Nd7 {[%clk 0:03:00.8]} 6. e5 {[%clk 0:02:53.4]} 6... d5 {[%clk 0:02:56.8]}
7. e6 {[%clk 0:02:37.5]} 7... fxe6 {[%clk 0:02:55]} 8. Bd3 {[%clk 0:02:31.8]}
8... Ngf6 {[%clk 0:02:52.4]} 9. Qe2 {[%clk 0:02:23.8]} 9... Nf8 {[%clk
0:02:41.3]} 10. Bd2 {[%clk 0:02:19.3]} 10... b5 {[%clk 0:02:38.1]} 11. a4 {[%clk
0:02:00.1]} 11... b4 {[%clk 0:02:37.5]} 12. Nd1 {[%clk 0:01:55.8]} 12... a5
{[%clk 0:02:38.1]} 13. Ne5 {[%clk 0:01:50.5]} 13... Qb6 {[%clk 0:02:34.3]} 14.
Nxc6 {[%clk 0:01:44.7]} 14... Bd7 {[%clk 0:02:32.1]} 15. Ne5 {[%clk 0:01:38.7]}
15... Rc8 {[%clk 0:02:18.9]} 16. O-O {[%clk 0:01:29]} 16... Ne4 {[%clk 0:02:12]}
17. Nxd7 {[%clk 0:01:17.9]} 17... Nxd7 {[%clk 0:02:07.9]} 18. Bxe4 {[%clk
0:01:04.3]} 18... Qxd4+ {[%clk 0:02:06.8]} 19. Kh1 {[%clk 0:00:56.3]} 19... Qxe4
{[%clk 0:02:06.7]} 20. Qxe4 {[%clk 0:00:44.1]} 20... dxe4 {[%clk 0:02:07.6]} 21.
c3 {[%clk 0:00:32.9]} 21... Nc5 {[%clk 0:02:07.9]} 22. Be3 {[%clk 0:00:18.5]}
22... Nb3 {[%clk 0:02:07.8]} 23. Rb1 {[%clk 0:00:17.7]} 23... Kf7 {[%clk
0:02:05.5]} 24. Nf2 {[%clk 0:00:07.9]} 24... bxc3 {[%clk 0:02:02.8]} 25. bxc3
{[%clk 0:00:08.2]} 25... Rxc3 {[%clk 0:02:03.7]} 26. Bb6 {[%clk 0:00:08.2]}
26... Nd2 {[%clk 0:01:59.4]} 27. Bxa5 {[%clk 0:00:04.6]} 27... Nxb1 {[%clk
0:01:57.7]} 28. Rxb1 {[%clk 0:00:04.4]} 28... Ra3 {[%clk 0:01:55.1]} 29. Nxe4
{[%clk 0:00:04.5]} 29... h6 {[%clk 0:01:44.8]} 30. Rb4 {[%clk 0:00:03.4]} 30...
Ra1+ {[%clk 0:01:43.9]} 0-1

[Event "Early-Titled-Tuesday-Blitz-October-24-2023"]
[Site "Chess.com"]
[Date "2023.10.24"]
[Round "6"]
[White "NovikovaGalina"]
[Black "kingapolak"]
[Result "1-0"]
[WhiteElo "2438"]
[BlackElo "2148"]
[TimeControl "180+1"]
[EndTime "9:03:25 PDT"]
[Termination "NovikovaGalina won on time"]

1. e4 {[%clk 0:03:00.9]} 1... c5 {[%clk 0:02:57.6]} 2. Nf3 {[%clk 0:03:01.4]}
2... Nc6 {[%clk 0:02:55.2]} 3. d4 {[%clk 0:03:01.9]} 3... cxd4 {[%clk
0:02:55.5]} 4. Nxd4 {[%clk 0:03:02.8]} 4... g6 {[%clk 0:02:55.6]} 5. Nc3 {[%clk
0:03:03.2]} 5... Bg7 {[%clk 0:02:54.8]} 6. Be3 {[%clk 0:03:03.9]} 6... Nf6
{[%clk 0:02:55]} 7. Nxc6 {[%clk 0:03:04.6]} 7... bxc6 {[%clk 0:02:52.2]} 8. e5
{[%clk 0:03:05.2]} 8... Ng8 {[%clk 0:02:40.9]} 9. Bd4 {[%clk 0:03:05.1]} 9... e6
{[%clk 0:02:38.3]} 10. Qd2 {[%clk 0:03:00.3]} 10... Ne7 {[%clk 0:02:38.1]} 11.
O-O-O {[%clk 0:02:58.6]} 11... O-O {[%clk 0:02:28.4]} 12. g4 {[%clk 0:02:59.1]}
12... Nd5 {[%clk 0:02:26.6]} 13. Ne4 {[%clk 0:02:47.5]} 13... Qc7 {[%clk
0:02:16.2]} 14. f4 {[%clk 0:02:45.1]} 14... f5 {[%clk 0:02:10.6]} 15. gxf5
{[%clk 0:02:42.7]} 15... Rxf5 {[%clk 0:02:02.4]} 16. Nf6+ {[%clk 0:02:33.5]}
16... Nxf6 {[%clk 0:01:58.4]} 17. exf6 {[%clk 0:02:34.4]} 17... Bxf6 {[%clk
0:01:57.8]} 18. Bxf6 {[%clk 0:02:35.3]} 18... Rxf6 {[%clk 0:01:57.9]} 19. Kb1
{[%clk 0:02:33.6]} 19... Qxf4 {[%clk 0:01:57.5]} 20. Qe1 {[%clk 0:02:33.8]}
20... d5 {[%clk 0:01:51]} 21. Bd3 {[%clk 0:02:33]} 21... Bd7 {[%clk 0:01:46.3]}
22. h4 {[%clk 0:02:32.7]} 22... Raf8 {[%clk 0:01:43.8]} 23. h5 {[%clk 0:02:32]}
23... g5 {[%clk 0:01:39.7]} 24. h6 {[%clk 0:02:32.4]} 24... c5 {[%clk
0:01:21.9]} 25. Rf1 {[%clk 0:02:28.4]} 25... Qd6 {[%clk 0:01:20.8]} 26. Rxf6
{[%clk 0:02:27.2]} 26... Rxf6 {[%clk 0:01:20.5]} 27. Qg1 {[%clk 0:02:27.3]}
27... Qe5 {[%clk 0:00:52.9]} 28. Re1 {[%clk 0:02:24.2]} 28... Qf4 {[%clk
0:00:49.5]} 29. Qxc5 {[%clk 0:02:13]} 29... Rxh6 {[%clk 0:00:45.9]} 30. Rf1
{[%clk 0:02:00.8]} 30... Qb8 {[%clk 0:00:45.2]} 31. Qe7 {[%clk 0:01:57.6]} 31...
Bc6 {[%clk 0:00:05.9]} 32. a3 {[%clk 0:01:49.9]} 32... Rh5 {[%clk 0:00:01.2]}
33. Qxe6+ {[%clk 0:01:41.1]} 1-0

[Event "Early-Titled-Tuesday-Blitz-October-24-2023"]
[Site "Chess.com"]
[Date "2023.10.24"]
[Round "6"]
[White "Casper"]
[Black "Krakozia"]
[Result "0-1"]
[WhiteElo "2462"]
[BlackElo "2950"]
[TimeControl "180+1"]
[EndTime "9:03:31 PDT"]
[Termination "Krakozia won by resignation"]

1. e4 {[%clk 0:02:55.9]} 1... c5 {[%clk 0:02:59.1]} 2. d4 {[%clk 0:02:55.3]}
2... cxd4 {[%clk 0:02:58.3]} 3. Qxd4 {[%clk 0:02:56.2]} 3... Nc6 {[%clk
0:02:57.9]} 4. Qe3 {[%clk 0:02:56.9]} 4... e6 {[%clk 0:02:54.8]} 5. Nc3 {[%clk
0:02:57.1]} 5... a6 {[%clk 0:02:53.2]} 6. a4 {[%clk 0:02:54.9]} 6... Nf6 {[%clk
0:02:50.5]} 7. Nf3 {[%clk 0:02:53.4]} 7... Bb4 {[%clk 0:02:50.4]} 8. Bd2 {[%clk
0:02:49.6]} 8... O-O {[%clk 0:02:45.9]} 9. Bd3 {[%clk 0:02:48.9]} 9... d5 {[%clk
0:02:44]} 10. exd5 {[%clk 0:02:48.8]} 10... exd5 {[%clk 0:02:41.6]} 11. Ne2
{[%clk 0:02:40.3]} 11... Re8 {[%clk 0:02:40.2]} 12. Qf4 {[%clk 0:02:34.7]} 12...
Bxd2+ {[%clk 0:02:26.6]} 13. Qxd2 {[%clk 0:02:32.9]} 13... Bg4 {[%clk
0:02:26.2]} 14. Qf4 {[%clk 0:01:47.7]} 14... Bxf3 {[%clk 0:02:24.8]} 15. gxf3
{[%clk 0:01:48.1]} 15... Qb6 {[%clk 0:02:11.3]} 16. O-O-O {[%clk 0:01:34.9]}
16... Qxf2 {[%clk 0:02:10.4]} 17. Ng3 {[%clk 0:01:24.4]} 17... Qe3+ {[%clk
0:02:04.1]} 18. Qxe3 {[%clk 0:01:24.1]} 18... Rxe3 {[%clk 0:02:05]} 19. Nf5
{[%clk 0:01:08.6]} 19... Rxf3 {[%clk 0:02:02]} 20. Rhg1 {[%clk 0:01:08.6]} 20...
g6 {[%clk 0:02:01.4]} 21. Nd6 {[%clk 0:01:05.7]} 21... Ne5 {[%clk 0:01:51.7]}
22. Bf1 {[%clk 0:00:44]} 22... Rf2 {[%clk 0:01:35.1]} 23. Rg2 {[%clk 0:00:37.5]}
23... Rf4 {[%clk 0:01:34.7]} 24. Re2 {[%clk 0:00:30.2]} 24... Nc6 {[%clk
0:01:09.9]} 25. b3 {[%clk 0:00:29.4]} 25... b5 {[%clk 0:01:08.1]} 26. axb5
{[%clk 0:00:26]} 26... axb5 {[%clk 0:01:09]} 27. Bg2 {[%clk 0:00:16.7]} 27...
Ra1+ {[%clk 0:01:05.5]} 28. Kd2 {[%clk 0:00:17.1]} 28... Rd4+ {[%clk 0:01:05.5]}
0-1

[Event "Early-Titled-Tuesday-Blitz-October-24-2023"]
[Site "Chess.com"]
[Date "2023.10.24"]
[Round "6"]
[White "Cayse"]
[Black "leejunhyeok"]
[Result "1-0"]
[WhiteElo "2880"]
[BlackElo "2675"]
[TimeControl "180+1"]
[EndTime "9:03:40 PDT"]
[Termination "Cayse won on time"]

1. e4 {[%clk 0:03:00.9]} 1... c5 {[%clk 0:02:58.8]} 2. Nf3 {[%clk 0:03:01]} 2...
d6 {[%clk 0:02:59]} 3. Bb5+ {[%clk 0:03:00.3]} 3... Bd7 {[%clk 0:02:59.1]} 4.
Bxd7+ {[%clk 0:03:00.1]} 4... Qxd7 {[%clk 0:03:00]} 5. c4 {[%clk 0:02:59.7]}
5... e5 {[%clk 0:03:00.2]} 6. Nc3 {[%clk 0:02:58.8]} 6... Nc6 {[%clk 0:03:00.7]}
7. O-O {[%clk 0:02:54.6]} 7... g6 {[%clk 0:03:00.3]} 8. Rb1 {[%clk 0:02:53.4]}
8... Bg7 {[%clk 0:03:00.2]} 9. a3 {[%clk 0:02:53.9]} 9... Nge7 {[%clk
0:03:00.5]} 10. b4 {[%clk 0:02:54.2]} 10... O-O {[%clk 0:03:00.6]} 11. d3 {[%clk
0:02:52.2]} 11... h6 {[%clk 0:02:56.8]} 12. Nd5 {[%clk 0:02:50.6]} 12... f5
{[%clk 0:02:47.7]} 13. h3 {[%clk 0:02:42.6]} 13... b6 {[%clk 0:02:28.6]} 14.
bxc5 {[%clk 0:02:34.7]} 14... dxc5 {[%clk 0:02:28.1]} 15. Bb2 {[%clk 0:02:34.7]}
15... fxe4 {[%clk 0:02:21.3]} 16. dxe4 {[%clk 0:02:34.5]} 16... Nd4 {[%clk
0:02:21.7]} 17. Bxd4 {[%clk 0:02:16.6]} 17... exd4 {[%clk 0:02:17.6]} 18. Qb3
{[%clk 0:02:07.5]} 18... Nc6 {[%clk 0:02:05.2]} 19. Nd2 {[%clk 0:02:03.8]} 19...
g5 {[%clk 0:01:36.7]} 20. f4 {[%clk 0:01:58.9]} 20... gxf4 {[%clk 0:01:36.2]}
21. Nxf4 {[%clk 0:01:58.8]} 21... Qd6 {[%clk 0:01:30]} 22. Nd5 {[%clk
0:01:50.1]} 22... h5 {[%clk 0:01:21.7]} 23. Rbe1 {[%clk 0:01:42.5]} 23... Bh6
{[%clk 0:01:20.8]} 24. Qd1 {[%clk 0:01:39.1]} 24... Ne5 {[%clk 0:01:13.8]} 25.
Rf5 {[%clk 0:01:31.4]} 25... Rxf5 {[%clk 0:00:13.4]} 26. exf5 {[%clk 0:01:31.2]}
26... Rf8 {[%clk 0:00:09.2]} 27. Ne4 {[%clk 0:01:28.2]} 27... Qd8 {[%clk
0:00:06.3]} 28. f6 {[%clk 0:01:24.3]} 28... Qe8 {[%clk 0:00:04.2]} 29. Nd6
{[%clk 0:01:16.8]} 1-0

[Event "Early-Titled-Tuesday-Blitz-October-24-2023"]
[Site "Chess.com"]
[Date "2023.10.24"]
[Round "6"]
[White "noblerone"]
[Black "Carow-Kann"]
[Result "0-1"]
[WhiteElo "2518"]
[BlackElo "2672"]
[TimeControl "180+1"]
[EndTime "9:03:41 PDT"]
[Termination "Carow-Kann won on time"]

1. d4 {[%clk 0:03:00.9]} 1... Nf6 {[%clk 0:02:53.9]} 2. Nf3 {[%clk 0:02:59.9]}
2... c5 {[%clk 0:02:47.6]} 3. c3 {[%clk 0:02:59.5]} 3... d5 {[%clk 0:02:47]} 4.
dxc5 {[%clk 0:02:53.2]} 4... e6 {[%clk 0:02:46.9]} 5. b4 {[%clk 0:02:50.4]} 5...
a5 {[%clk 0:02:43.6]} 6. Bb2 {[%clk 0:02:35]} 6... b6 {[%clk 0:02:34.9]} 7. a3
{[%clk 0:02:27.2]} 7... bxc5 {[%clk 0:02:33.8]} 8. b5 {[%clk 0:02:27.3]} 8... c4
{[%clk 0:02:23.7]} 9. a4 {[%clk 0:02:26.8]} 9... Bc5 {[%clk 0:02:19.3]} 10. e3
{[%clk 0:02:26.8]} 10... Ne4 {[%clk 0:02:11.2]} 11. Nbd2 {[%clk 0:02:14.2]}
11... f5 {[%clk 0:02:11.2]} 12. Be2 {[%clk 0:02:04.7]} 12... O-O {[%clk
0:02:05.5]} 13. O-O {[%clk 0:02:02.8]} 13... Nd7 {[%clk 0:02:04.3]} 14. Nd4
{[%clk 0:01:59.7]} 14... Qf6 {[%clk 0:01:52.6]} 15. Nxe4 {[%clk 0:01:51.5]}
15... fxe4 {[%clk 0:01:50.3]} 16. Ba3 {[%clk 0:01:39.6]} 16... Bxa3 {[%clk
0:01:43.2]} 17. Rxa3 {[%clk 0:01:39.4]} 17... Nc5 {[%clk 0:01:35.6]} 18. Nc6
{[%clk 0:00:59.7]} 18... Bd7 {[%clk 0:01:14.2]} 19. Qd4 {[%clk 0:00:53]} 19...
Bxc6 {[%clk 0:01:10.7]} 20. Qxc5 {[%clk 0:00:48.4]} 20... Bb7 {[%clk 0:01:09.9]}
21. Qb6 {[%clk 0:00:41.4]} 21... Qe7 {[%clk 0:00:57.8]} 22. Raa1 {[%clk
0:00:26.7]} 22... e5 {[%clk 0:00:57.2]} 0-1

[Event "Early-Titled-Tuesday-Blitz-October-24-2023"]
[Site "Chess.com"]
[Date "2023.10.24"]
[Round "6"]
[White "Payyappat"]
[Black "Kostya0705"]
[Result "1-0"]
[WhiteElo "2524"]
[BlackElo "2618"]
[TimeControl "180+1"]
[EndTime "9:03:41 PDT"]
[Termination "Payyappat won by resignation"]

1. e4 {[%clk 0:03:00.9]} 1... c5 {[%clk 0:02:55.5]} 2. Nf3 {[%clk 0:02:58.8]}
2... e6 {[%clk 0:02:55.8]} 3. d4 {[%clk 0:02:57.8]} 3... cxd4 {[%clk 0:02:56.3]}
4. Nxd4 {[%clk 0:02:57.2]} 4... Nc6 {[%clk 0:02:57]} 5. Nc3 {[%clk 0:02:57]}
5... Qc7 {[%clk 0:02:57.3]} 6. Be3 {[%clk 0:02:56.1]} 6... a6 {[%clk 0:02:57.5]}
7. Be2 {[%clk 0:02:54.6]} 7... Nf6 {[%clk 0:02:57.3]} 8. O-O {[%clk 0:02:54.7]}
8... Be7 {[%clk 0:02:57.5]} 9. f4 {[%clk 0:02:54.1]} 9... d6 {[%clk 0:02:57.6]}
10. Bf3 {[%clk 0:02:50.9]} 10... O-O {[%clk 0:02:56.2]} 11. g4 {[%clk
0:02:49.3]} 11... Nxd4 {[%clk 0:02:55]} 12. Bxd4 {[%clk 0:02:47.9]} 12... e5
{[%clk 0:02:55.2]} 13. Be3 {[%clk 0:02:44.1]} 13... exf4 {[%clk 0:02:48.3]} 14.
Bxf4 {[%clk 0:02:45]} 14... Be6 {[%clk 0:02:48]} 15. Kh1 {[%clk 0:02:39.6]}
15... Nd7 {[%clk 0:02:45]} 16. Nd5 {[%clk 0:02:30.7]} 16... Bxd5 {[%clk
0:02:43.3]} 17. exd5 {[%clk 0:02:31.6]} 17... Bf6 {[%clk 0:02:33]} 18. c3 {[%clk
0:02:28.2]} 18... g6 {[%clk 0:02:32.4]} 19. Qd2 {[%clk 0:02:24.5]} 19... Rfe8
{[%clk 0:02:30.7]} 20. Qg2 {[%clk 0:02:22.4]} 20... Ne5 {[%clk 0:02:28.4]} 21.
Be4 {[%clk 0:02:19.9]} 21... Bg7 {[%clk 0:02:25.3]} 22. Rae1 {[%clk 0:02:14.9]}
22... Qc4 {[%clk 0:02:21.5]} 23. h3 {[%clk 0:02:08]} 23... Qxa2 {[%clk
0:02:15.9]} 24. Qf2 {[%clk 0:02:06]} 24... Re7 {[%clk 0:02:07.2]} 25. Qb6 {[%clk
0:02:00.7]} 25... Nc4 {[%clk 0:02:03.5]} 26. Qb4 {[%clk 0:01:55.5]} 26... a5
{[%clk 0:01:50.7]} 27. Qb5 {[%clk 0:01:53.7]} 27... Rc8 {[%clk 0:01:40.5]} 28.
b3 {[%clk 0:01:43.6]} 28... Nd2 {[%clk 0:01:25.6]} 29. Re2 {[%clk 0:01:16.6]}
29... Rxe4 {[%clk 0:01:16.2]} 30. Rxd2 {[%clk 0:01:14.5]} 30... Qa3 {[%clk
0:01:05.5]} 31. Qd7 {[%clk 0:01:12.3]} 31... Rxc3 {[%clk 0:00:36]} 32. Bxd6
{[%clk 0:01:07]} 32... Qxb3 {[%clk 0:00:26.8]} 33. Qd8+ {[%clk 0:01:02.5]} 1-0

[Event "Early-Titled-Tuesday-Blitz-October-24-2023"]
[Site "Chess.com"]
[Date "2023.10.24"]
[Round "6"]
[White "Sanyura"]
[Black "Magila31"]
[Result "0-1"]
[WhiteElo "2582"]
[BlackElo "2401"]
[TimeControl "180+1"]
[EndTime "9:03:44 PDT"]
[Termination "Magila31 won by resignation"]

1. Nf3 {[%clk 0:02:41.4]} 1... g6 {[%clk 0:02:56.9]} 2. g3 {[%clk 0:02:41.6]}
2... Bg7 {[%clk 0:02:56.6]} 3. Bg2 {[%clk 0:02:42.1]} 3... Nf6 {[%clk
0:02:56.6]} 4. O-O {[%clk 0:02:42.5]} 4... O-O {[%clk 0:02:56.8]} 5. d4 {[%clk
0:02:42.3]} 5... d6 {[%clk 0:02:56.1]} 6. c4 {[%clk 0:02:43]} 6... c6 {[%clk
0:02:55.9]} 7. Nc3 {[%clk 0:02:43.6]} 7... Qa5 {[%clk 0:02:55.6]} 8. e4 {[%clk
0:02:41.5]} 8... e5 {[%clk 0:02:55.1]} 9. d5 {[%clk 0:02:39.1]} 9... cxd5 {[%clk
0:02:49.3]} 10. cxd5 {[%clk 0:02:39.1]} 10... b5 {[%clk 0:02:48.8]} 11. Re1
{[%clk 0:02:19.1]} 11... b4 {[%clk 0:02:40.3]} 12. Qa4 {[%clk 0:02:18.1]} 12...
Qxa4 {[%clk 0:02:35.3]} 13. Nxa4 {[%clk 0:02:17.3]} 13... Bd7 {[%clk 0:02:14.8]}
14. b3 {[%clk 0:02:15.7]} 14... Bxa4 {[%clk 0:02:10.7]} 15. bxa4 {[%clk
0:02:12.4]} 15... Nbd7 {[%clk 0:02:10]} 16. Nd2 {[%clk 0:02:06.5]} 16... Nb6
{[%clk 0:02:04.2]} 17. a5 {[%clk 0:02:05.8]} 17... Na4 {[%clk 0:02:04]} 18. Nc4
{[%clk 0:02:02.4]} 18... Rfd8 {[%clk 0:01:58.1]} 19. Bd2 {[%clk 0:02:02.2]}
19... Rac8 {[%clk 0:01:50.4]} 20. Bf1 {[%clk 0:02:01.5]} 20... Nc3 {[%clk
0:01:46.4]} 21. Bxc3 {[%clk 0:01:59.9]} 21... bxc3 {[%clk 0:01:46.7]} 22. Rac1
{[%clk 0:01:59.3]} 22... Bh6 {[%clk 0:01:46.9]} 23. Rc2 {[%clk 0:01:48.2]} 23...
Rc5 {[%clk 0:01:40.9]} 24. f3 {[%clk 0:01:42.3]} 24... Rb8 {[%clk 0:01:28.6]}
25. Nxd6 {[%clk 0:01:36.1]} 25... Bd2 {[%clk 0:01:27.2]} 26. Rd1 {[%clk
0:01:32.8]} 26... Rb2 {[%clk 0:00:58.1]} 27. Bd3 {[%clk 0:01:32.6]} 27... Rxc2
{[%clk 0:00:54.8]} 28. Bxc2 {[%clk 0:01:32.8]} 28... Rxa5 {[%clk 0:00:55.1]} 29.
Bb3 {[%clk 0:01:21.8]} 29... Rc5 {[%clk 0:00:43]} 30. Nc4 {[%clk 0:01:17.1]}
30... Rxc4 {[%clk 0:00:42.8]} 0-1

[Event "Early-Titled-Tuesday-Blitz-October-24-2023"]
[Site "Chess.com"]
[Date "2023.10.24"]
[Round "6"]
[White "Happy1712Drummer"]
[Black "ImBushchess"]
[Result "0-1"]
[WhiteElo "2376"]
[BlackElo "2273"]
[TimeControl "180+1"]
[EndTime "9:03:46 PDT"]
[Termination "ImBushchess won on time"]

1. e4 {[%clk 0:03:00.9]} 1... d6 {[%clk 0:02:54]} 2. d4 {[%clk 0:02:59.9]} 2...
Nd7 {[%clk 0:02:54.4]} 3. Nc3 {[%clk 0:02:58.9]} 3... g6 {[%clk 0:02:55.3]} 4.
g3 {[%clk 0:02:57.2]} 4... Bg7 {[%clk 0:02:56.2]} 5. Bg2 {[%clk 0:02:57.7]} 5...
e5 {[%clk 0:02:56.7]} 6. Nge2 {[%clk 0:02:57]} 6... Ne7 {[%clk 0:02:56.1]} 7.
O-O {[%clk 0:02:56.7]} 7... O-O {[%clk 0:02:55.7]} 8. h3 {[%clk 0:02:55.2]} 8...
exd4 {[%clk 0:02:48.3]} 9. Nxd4 {[%clk 0:02:54.9]} 9... Nb6 {[%clk 0:02:47.7]}
10. a4 {[%clk 0:02:33.1]} 10... a5 {[%clk 0:02:45.5]} 11. b3 {[%clk 0:02:21.3]}
11... d5 {[%clk 0:02:34.5]} 12. exd5 {[%clk 0:01:32.7]} 12... Nexd5 {[%clk
0:02:32.3]} 13. Nxd5 {[%clk 0:01:33.4]} 13... Nxd5 {[%clk 0:02:30.7]} 14. Ba3
{[%clk 0:00:36.1]} 14... Nc3 {[%clk 0:02:25.4]} 15. Qf3 {[%clk 0:00:34.7]} 15...
Bxd4 {[%clk 0:02:17.8]} 16. Bxf8 {[%clk 0:00:34.2]} 16... Qxf8 {[%clk
0:02:17.8]} 17. Qd3 {[%clk 0:00:27.9]} 17... c5 {[%clk 0:02:12.9]} 18. Rae1
{[%clk 0:00:26.6]} 18... Bf5 {[%clk 0:02:07.2]} 19. Qc4 {[%clk 0:00:24.9]} 19...
Rb8 {[%clk 0:01:49.7]} 20. g4 {[%clk 0:00:22]} 20... Be6 {[%clk 0:01:46.4]} 21.
Qd3 {[%clk 0:00:22.4]} 21... Rd8 {[%clk 0:01:44.4]} 22. Qf3 {[%clk 0:00:18.8]}
22... Bd5 {[%clk 0:01:41.3]} 23. Qg3 {[%clk 0:00:19.3]} 23... Bxg2 {[%clk
0:01:40]} 24. Kxg2 {[%clk 0:00:20.2]} 24... b6 {[%clk 0:01:37.4]} 25. Qc7 {[%clk
0:00:17.6]} 25... Qd6 {[%clk 0:01:33.4]} 26. Re7 {[%clk 0:00:10.8]} 26... Qd5+
{[%clk 0:01:30.3]} 27. Kg1 {[%clk 0:00:07.3]} 27... Rf8 {[%clk 0:01:29.3]} 28.
Rfe1 {[%clk 0:00:06.6]} 28... Qf3 {[%clk 0:01:25.4]} 29. Rf1 {[%clk 0:00:02.4]}
29... Ne2+ {[%clk 0:01:23]} 30. Kh2 {[%clk 0:00:02.7]} 30... Nf4 {[%clk
0:01:21.9]} 0-1

[Event "Early-Titled-Tuesday-Blitz-October-24-2023"]
[Site "Chess.com"]
[Date "2023.10.24"]
[Round "6"]
[White "Kotofeyca"]
[Black "Buzhizhebuguai"]
[Result "0-1"]
[WhiteElo "2403"]
[BlackElo "2618"]
[TimeControl "180+1"]
[EndTime "9:03:48 PDT"]
[Termination "Buzhizhebuguai won by resignation"]

1. d4 {[%clk 0:03:00.9]} 1... Nf6 {[%clk 0:02:57.7]} 2. c4 {[%clk 0:03:00.5]}
2... e6 {[%clk 0:02:57.8]} 3. Nf3 {[%clk 0:03:00.6]} 3... b6 {[%clk 0:02:56.3]}
4. g3 {[%clk 0:03:00]} 4... Bb7 {[%clk 0:02:56.6]} 5. Bg2 {[%clk 0:03:00.5]}
5... Bb4+ {[%clk 0:02:56]} 6. Nbd2 {[%clk 0:03:00.3]} 6... c5 {[%clk 0:02:55.7]}
7. a3 {[%clk 0:02:57.7]} 7... Bxd2+ {[%clk 0:02:55.5]} 8. Qxd2 {[%clk
0:02:58.1]} 8... cxd4 {[%clk 0:02:54.6]} 9. Qxd4 {[%clk 0:02:59]} 9... O-O
{[%clk 0:02:53.7]} 10. O-O {[%clk 0:02:58.6]} 10... Nc6 {[%clk 0:02:53.9]} 11.
Qh4 {[%clk 0:02:53.7]} 11... Rc8 {[%clk 0:02:52.7]} 12. Bg5 {[%clk 0:02:33.8]}
12... h6 {[%clk 0:02:51.5]} 13. Bxf6 {[%clk 0:02:33.7]} 13... Qxf6 {[%clk
0:02:51.2]} 14. Qxf6 {[%clk 0:02:33.4]} 14... gxf6 {[%clk 0:02:52.1]} 15. Nd2
{[%clk 0:02:26.2]} 15... Na5 {[%clk 0:02:46.1]} 16. Rac1 {[%clk 0:02:15.2]}
16... Bxg2 {[%clk 0:02:42.2]} 17. Kxg2 {[%clk 0:02:16.1]} 17... Kg7 {[%clk
0:02:42.3]} 18. Rc3 {[%clk 0:02:15.8]} 18... Rc6 {[%clk 0:02:39]} 19. Rfc1
{[%clk 0:02:15.6]} 19... Rfc8 {[%clk 0:02:39.7]} 20. e4 {[%clk 0:01:59.1]} 20...
R6c7 {[%clk 0:02:35.7]} 21. Kf3 {[%clk 0:01:54.8]} 21... Nc6 {[%clk 0:02:35.8]}
22. Ke3 {[%clk 0:01:54.2]} 22... Ne5 {[%clk 0:02:35.1]} 23. h3 {[%clk
0:01:52.4]} 23... Kf8 {[%clk 0:02:33.3]} 24. f4 {[%clk 0:01:51]} 24... Nc6
{[%clk 0:02:33.1]} 25. c5 {[%clk 0:01:49.2]} 25... b5 {[%clk 0:02:31.2]} 26. Nb3
{[%clk 0:01:07.5]} 26... a6 {[%clk 0:02:27.4]} 27. Nd4 {[%clk 0:01:06.2]} 27...
Na5 {[%clk 0:02:27]} 28. b4 {[%clk 0:01:03.5]} 28... Nc4+ {[%clk 0:02:21.8]} 29.
Kd3 {[%clk 0:00:58]} 29... Nb2+ {[%clk 0:02:11.7]} 30. Kc2 {[%clk 0:00:56.7]}
30... Na4 {[%clk 0:02:11.4]} 31. Rd3 {[%clk 0:00:52]} 31... d6 {[%clk 0:02:11]}
32. Nxe6+ {[%clk 0:00:29.3]} 32... fxe6 {[%clk 0:02:10.5]} 33. Rxd6 {[%clk
0:00:30.2]} 33... Nxc5 {[%clk 0:02:10.6]} 34. Kb1 {[%clk 0:00:22.5]} 34... Nxe4
{[%clk 0:02:07.9]} 35. Rxc7 {[%clk 0:00:22.6]} 35... Nxd6 {[%clk 0:02:07.1]} 36.
Rh7 {[%clk 0:00:19.7]} 36... Rc3 {[%clk 0:02:07.3]} 37. Rxh6 {[%clk 0:00:19.4]}
37... Kg7 {[%clk 0:02:07.2]} 38. Rh5 {[%clk 0:00:18.6]} 38... Rxg3 {[%clk
0:02:07.2]} 39. Rc5 {[%clk 0:00:18.7]} 39... Rxa3 {[%clk 0:02:04.5]} 40. Rc6
{[%clk 0:00:19]} 40... Rd3 {[%clk 0:01:56.9]} 41. Rxa6 {[%clk 0:00:18.7]} 41...
e5 {[%clk 0:01:57.4]} 42. Kc2 {[%clk 0:00:17.8]} 42... e4 {[%clk 0:01:57.5]} 43.
f5 {[%clk 0:00:14.5]} 43... Kh6 {[%clk 0:01:54.4]} 44. Ra8 {[%clk 0:00:10.1]}
44... Kg5 {[%clk 0:01:54.2]} 0-1